fUSD/lending_fUSD_20240223
["ID","MTS","AMOUNT","RATE_DAILY","PERIOD"]
[314985108,1708715482758,-153.39,0.000334,2]
[314985109,1708715482770,-358.9832586,0.000334,2]
[314985110,1708715482782,-920.9488898,0.000334,2]
[314985111,1708715482796,-300.0,0.000334,2]
[314985112,1708715482811,-357.820635,0.000334,2]
[314985113,1708715482824,-1314.14506351,0.00033403,7]
[314985114,1708715482836,-573.11929172,0.00033405,7]
[314985115,1708715482851,-154.98329938,0.0003341,7]
[314985116,1708715482864,-155.14487319,0.0003341,7]
[314985117,1708715482880,-223.41669718,0.00033423,4]
[314985118,1708715482894,-154.02083881,0.00033432,7]
[314985119,1708715482908,-152.6064863,0.00033467,7]
[314985120,1708715482922,-500.0,0.00033484,6]
[314985121,1708715482935,-500.0,0.00033484,6]
[314985122,1708715482948,-500.0,0.00033484,6]
[314985123,1708715482963,-500.0,0.00033484,6]
[314985124,1708715482976,-500.0,0.00033486,2]
[314985125,1708715482990,-1314.14506351,0.0003349,7]
[314985126,1708715483002,-500.0,0.000335,6]
[314985127,1708715483015,-397.79452343,0.000335,2]
[314985128,1708715483029,-7841.03,0.000335,2]
[314985129,1708715483042,-7841.03,0.000335,2]
[314985130,1708715483055,-7841.03,0.000335,2]
[314985131,1708715483068,-7841.03,0.000335,2]
[314985132,1708715483082,-7841.03,0.000335,2]
[314985133,1708715483094,-7841.03,0.000335,2]
[314985134,1708715483107,-7841.03,0.000335,2]
[314985135,1708715483120,-7841.03,0.000335,2]
[314985136,1708715483133,-7841.03,0.000335,2]
[314985137,1708715483146,-7841.03,0.000335,2]
[314985138,1708715483159,-7841.03,0.000335,2]
[314985139,1708715483172,-7841.03,0.000335,2]
[314985140,1708715483185,-7841.03,0.000335,2]
[314985141,1708715483198,-7841.03,0.000335,2]
[314985142,1708715483211,-7841.03,0.000335,2]
[314985143,1708715483223,-7841.03,0.000335,2]
[314985144,1708715483235,-7841.03,0.000335,2]
[314985145,1708715483248,-7841.03,0.000335,2]
[314985146,1708715483261,-7841.03,0.000335,2]
[314985147,1708715483274,-7841.03,0.000335,2]
[314985148,1708715483287,-249.0,0.00033521,2]
[314985149,1708715483301,-260.95699805,0.00033523,2]
[314985150,1708715483314,-1062.58235876,0.00033524,7]
[314985151,1708715483327,-500.0,0.00033534,10]
[314985152,1708715483339,-172.678369,0.00033537,2]
[314985153,1708715483352,-389.3709,0.00033537,2]
[314985154,1708715483365,-1879.33046,0.00033537,2]
[314985155,1708715483377,-834.568549,0.00033537,2]
[314985156,1708715483390,-2105.1,0.00033551,2]
[314985157,1708715483402,-154.98329938,0.00033559,7]
[314985158,1708715483415,-160.0,0.0003356,7]
[314985159,1708715483428,-152.45123919,0.00033561,7]
[314985160,1708715483440,-1093.36671362,0.00033561,7]
[314985161,1708715483453,-1000.0,0.00033561,7]
[314985162,1708715483466,-534.30735509,0.00033561,10]
[314985163,1708715483478,-1237.38247764,0.00033561,7]
[314985164,1708715483491,-766.44402665,0.00033561,10]
[314985165,1708715483503,-178.35549342,0.00033561,7]
[314985166,1708715483516,-170.75944464,0.00033561,7]
[314985167,1708715483529,-2496.05814287,0.00033561,10]
[314985168,1708715483542,-568.23963146,0.00033561,7]
[314985169,1708715483554,-354.32744847,0.00033561,7]
[314985170,1708715483568,-465.4025635,0.00033561,7]
[314985171,1708715483581,-599.77204604,0.00033561,7]
[314985172,1708715483594,-3543.29791119,0.00033561,10]
[314985173,1708715483606,-362.33519676,0.00033561,7]
[314985174,1708715483619,-1000.0,0.00033561,7]
[314985175,1708715483631,-752.53610406,0.00033561,10]
[314985176,1708715483644,-1000.0,0.00033561,7]
[314985177,1708715483656,-251.02027402,0.00033561,7]
[314985178,1708715483669,-3844.01702674,0.00033561,10]
[314985179,1708715483681,-831.36774928,0.00033561,7]
[314985180,1708715483694,-413.58568138,0.00033561,7]
[314985181,1708715483707,-450.0,0.0003357,2]
[314985182,1708715483719,-573.11929172,0.00033577,7]
[314985183,1708715483732,-155.85963339,0.00033578,7]
[314985184,1708715483744,-155.76031539,0.00033593,7]
[314985185,1708715483756,-976.94,0.00033598,2]
[314985186,1708715483768,-150.0,0.00033598,2]
[314985187,1708715483780,-156.57354396,0.0003361,7]
[314985188,1708715483792,-155.14487319,0.00033628,7]
[314985189,1708715483807,-500.0,0.00033638,2]
[314985190,1708715483820,-154.07502588,0.00033655,7]
[314985191,1708715483833,-1062.58235876,0.00033662,7]
[314985192,1708715483846,-156.57354396,0.00033683,7]
[314985193,1708715483860,-154.07502588,0.00033688,7]
[314985194,1708715483876,-154.07502588,0.000337,7]
[314985195,1708715483888,-152.60648632,0.00033716,7]
[314985196,1708715483902,-169.4892898,0.0003373,7]
[314985197,1708715483916,-158.44336475,0.00033736,7]
[314985198,1708715483931,-155.76031539,0.00033741,7]
[314985199,1708715483945,-150.0,0.00033742,2]
[314985200,1708715483960,-573.11929172,0.00033746,7]
[314985201,1708715483973,-151.54644394,0.00033762,7]
[314985202,1708715483986,-500.0,0.0003379,2]
[314985203,1708715483998,-200.0,0.000338,2]
[314985204,1708715484010,-971.070038,0.000338,22]
[314985205,1708715484023,-260.95699805,0.00033808,2]
[314985206,1708715484037,-152.0,0.00033823,11]
[314985207,1708715484051,-573.11929172,0.0003384,7]
[314985208,1708715484066,-4952.46101687,0.00033856,2]
[314985209,1708715484079,-31052.72504961,0.00033862,2]
[314985210,1708715484093,-151.54644394,0.00033862,7]
[314985211,1708715484105,-1213.77329886,0.00033866,7]
[314985212,1708715484118,-3000.0,0.0003388,2]
[314985213,1708715484131,-168.45313711,0.00033888,7]
[314985214,1708715484144,-151.0,0.0003389,2]
[314985215,1708715484157,-250.49088,0.0003389,2]
[314985216,1708715484170,-150.03630938,0.000339,2]
[314985217,1708715484183,-150.03630934,0.000339,2]
[314985218,1708715484196,-150.03630934,0.000339,2]
[314985219,1708715484209,-150.03630934,0.000339,2]
[314985220,1708715484221,-150.03630934,0.000339,2]
[314985221,1708715484234,-150.03630934,0.000339,2]
[314985222,1708715484246,-150.03630934,0.000339,2]
[314985223,1708715484260,-150.03630934,0.000339,2]
[314985224,1708715484273,-150.03630934,0.000339,2]
[314985225,1708715484284,-150.03630934,0.000339,2]
[314985226,1708715484531,-150.03630934,0.000339,2]
[314985227,1708715484549,-150.03630934,0.000339,2]
[314985228,1708715484559,-150.03630934,0.000339,2]
[314985229,1708715484568,-150.03630934,0.000339,2]
[314985230,1708715484577,-150.03630934,0.000339,2]
[314985231,1708715484586,-150.03630934,0.000339,2]
[314985232,1708715484597,-150.03630934,0.000339,2]
[314985233,1708715484606,-150.03630934,0.000339,2]
[314985234,1708715484615,-150.03630934,0.000339,2]
[314985235,1708715484624,-150.03630934,0.000339,2]
[314985236,1708715484633,-150.03630934,0.000339,2]
[314985237,1708715484643,-150.03630934,0.000339,2]
[314985238,1708715484652,-150.03630934,0.000339,2]
[314985239,1708715484661,-150.03630934,0.000339,2]
[314985240,1708715484672,-150.03630934,0.000339,2]
[314985241,1708715484681,-150.03630934,0.000339,2]
[314985242,1708715484690,-150.03630934,0.000339,2]
[314985243,1708715484699,-150.03630934,0.000339,2]
[314985244,1708715484709,-873.987028,0.000339,6]
[314985245,1708715484718,-200.0,0.000339,7]
[314985246,1708715484727,-3689.70579272,0.000339,6]
[314985247,1708715484737,-198.66283518,0.000339,2]
[314985248,1708715484746,-3652.60488742,0.000339,2]
[314985249,1708715484755,-3293.56483632,0.000339,2]
[314985250,1708715484764,-516.01564897,0.000339,2]
[314985251,1708715484774,-170.35022239,0.000339,23]
[314985252,1708715484784,-2122.54451544,0.000339,2]
[314985253,1708715484794,-573.11929172,0.00033917,7]
[314985254,1708715484803,-154.98329938,0.00033923,7]
[314985255,1708715484813,-168.75267511,0.00033924,7]
[314985256,1708715484823,-154.07502588,0.00033926,7]
[314985257,1708715484832,-1213.77329886,0.00033929,7]
[314985258,1708715484842,-159.69428409,0.00033933,7]
[314985259,1708715484851,-1314.14506351,0.00033936,7]
[314985260,1708715484861,-159.251373,0.00033942,2]
[314985261,1708715484871,-222.16402,0.00033942,2]
[314985262,1708715484881,-355.462429,0.00033942,2]
[314985263,1708715484891,-3893.708996,0.00033942,2]
[314985264,1708715484900,-3893.708996,0.00033942,2]
[314985265,1708715484910,-626.758522,0.00033942,2]
[314985266,1708715484919,-3036.868378,0.00033942,2]
[314985267,1708715484928,-172.678369,0.00033942,2]
[314985268,1708715484937,-389.3709,0.00033942,2]
[314985269,1708715484947,-1879.33046,0.00033942,2]
[314985270,1708715484956,-834.568549,0.00033942,2]
[314985271,1708715484965,-500.0,0.00033942,2]
[314985272,1708715484974,-154.07502588,0.00033959,7]
[314985273,1708715484983,-206.85395485,0.00033965,7]
[314985274,1708715484993,-6990.7874671,0.00033977,2]
[314985275,1708715485002,-156.35719251,0.00033998,7]
[314985276,1708715485011,-1000.0,0.00034,4]
[314985277,1708715485020,-10000.0,0.00034,2]
[314985278,1708715485029,-270827.29858696,0.00034,2]
[314985279,1708715485040,-17171.18844267,0.00034,7]
[314985280,1708715485049,-596000.0,0.00034,2]
[314985281,1708715485059,-23678.18,0.00034,2]
[314985282,1708715485069,-800.0,0.00034,2]
[314985283,1708715485078,-246.12908867,0.00034,3]
[314985284,1708715485087,-1204.0,0.00034,30]
[314985285,1708715485099,-300.0,0.00034,2]
[314985286,1708715485109,-900.0,0.00034,35]
[314985287,1708715485118,-250.0,0.00034,120]
[314985288,1708715485129,-177311.20198009,0.00034,2]
[314985289,1708715485139,-5013.18,0.00034,2]
[314985290,1708715485148,-1213.77329886,0.00034024,7]
[314985291,1708715485157,-444.0,0.0003405,2]
[314985292,1708715485166,-213.0,0.0003405,2]
[314985293,1708715485176,-573.11929172,0.00034073,7]
[314985294,1708715485186,-500.0,0.00034082,10]
[314985295,1708715485195,-527.73082993,0.00034082,7]
[314985296,1708715485204,-500.0,0.00034082,10]
[314985297,1708715485213,-156.57354396,0.00034089,7]
[314985298,1708715485223,-155.0,0.0003409,2]
[314985299,1708715485233,-260.95699805,0.00034093,2]
[314985300,1708715485242,-500.0,0.00034094,2]
[314985301,1708715485251,-1213.77329886,0.00034115,7]
[314985302,1708715485261,-150.03630934,0.00034125,2]
[314985303,1708715485271,-159.69428409,0.00034156,7]
[314985304,1708715485280,-155.57626886,0.00034173,7]
[314985305,1708715485289,-150.0,0.00034175,2]
[314985306,1708715485301,-176.22485697,0.00034192,7]
[314985307,1708715485310,-153.31768893,0.00034195,7]
[314985308,1708715485320,-8000.0,0.000342,2]
[314985309,1708715485330,-156.321914,0.00034211,7]
[314985310,1708715485341,-179.746274,0.00034232,2]
[314985311,1708715485350,-156.097128,0.00034232,2]
[314985312,1708715485360,-3177.767954,0.00034232,2]
[314985313,1708715485369,-159.29487323,0.00034236,7]
[314985314,1708715485378,-154.07502588,0.0003424,7]
[314985315,1708715485388,-500.0,0.00034247,2]
[314985316,1708715485397,-155.0,0.00034247,2]
[314985317,1708715485407,-224.72078485,0.00034248,7]
[314985318,1708715485417,-312.44,0.0003427,2]
[314985319,1708715485426,-200000.0,0.00034288,10]
[314985320,1708715485435,-1062.58235876,0.00034303,7]
[314985321,1708715485444,-151.49591866,0.00034315,7]
[314985322,1708715485454,-155.59752133,0.0003433,7]
[314985323,1708715485463,-155.59752133,0.00034364,7]
[314985324,1708715485472,-260.95699805,0.00034378,2]
[314985325,1708715485482,-160.0,0.0003439,2]
[314985326,1708715485491,-150.03630934,0.00034391,2]
[314985327,1708715485500,-500.0,0.00034399,2]
[314985328,1708715485510,-3566.0,0.00034412,2]
[314985329,1708715485519,-168.45313711,0.00034418,7]
[314985330,1708715485529,-215946.8874179,0.00034439,2]
[314985331,1708715485538,-1314.14506351,0.00034448,7]
[314985332,1708715485547,-302.0,0.0003446,4]
[314985333,1708715485556,-4020.0,0.00034463,7]
[314985334,1708715485565,-152.0,0.00034465,12]
[314985335,1708715485574,-672.0,0.00034466,2]
[314985336,1708715485584,-903.24,0.00034478,2]
[314985337,1708715485594,-500.0,0.000345,7]
[314985338,1708715485605,-154.98329938,0.00034512,7]
[314985339,1708715485614,-10075.390182,0.0003452,2]
[314985340,1708715485623,-158.00337686,0.0003452,7]
[314985341,1708715485631,-10000.0,0.00034521,2]
[314985342,1708715485640,-155.76031539,0.00034524,7]
[314985343,1708715485650,-150.0,0.00034548,10]
[314985344,1708715485659,-500.0,0.00034551,2]
[314985345,1708715485668,-4087.0,0.00034602,2]
[314985346,1708715485678,-1492.324,0.00034602,2]
[314985347,1708715485687,-150.0,0.00034607,2]
[314985348,1708715485696,-156.57354396,0.00034624,7]
[314985349,1708715485706,-159.51672724,0.00034625,7]
[314985350,1708715485715,-573.11929172,0.00034627,7]
[314985351,1708715485724,-500.0,0.0003463,10]
[314985352,1708715485734,-160.0,0.00034647,7]
[314985353,1708715485743,-150.03630934,0.00034656,2]
[314985354,1708715485752,-1062.58235876,0.00034656,7]
[314985355,1708715485762,-156.32191401,0.00034658,7]
[314985356,1708715485771,-156.097128,0.0003466,2]
[314985357,1708715485781,-3177.767954,0.0003466,2]
[314985358,1708715485790,-260.95699805,0.00034663,2]
[314985359,1708715485800,-151.49591866,0.00034667,7]
[314985360,1708715485809,-151.54644394,0.00034675,7]
[314985361,1708715485818,-206.85395485,0.00034676,7]
[314985362,1708715485827,-156.35719251,0.00034683,7]
[314985363,1708715485837,-160.0,0.00034693,7]
[314985364,1708715485847,-444.0,0.000347,2]
[314985365,1708715485857,-213.0,0.000347,2]
[314985366,1708715485867,-201.0,0.000347,2]
[314985367,1708715485880,-500.0,0.00034703,2]
[314985368,1708715485890,-1062.58235876,0.00034719,7]
[314985369,1708715485899,-1213.77329886,0.0003472,7]
[314985370,1708715485910,-155.57626886,0.00034743,7]
[314985371,1708715485919,-150.0,0.00034751,2]
[314985372,1708715485928,-155.14487319,0.00034758,7]
[314985373,1708715485938,-155.59752133,0.0003478,7]
[314985374,1708715485947,-15113.085273,0.00034794,2]
[314985375,1708715485957,-172.0,0.00034795,2]
[314985376,1708715485967,-44353.48352352,0.00034796,2]
[314985377,1708715485977,-206.85395485,0.00034799,7]
[314985378,1708715485986,-156.57354396,0.00034805,7]
[314985379,1708715485995,-150.0,0.00034829,2]
[314985380,1708715486004,-150.0,0.00034829,2]
[314985381,1708715486013,-1124.0,0.00034829,2]
[314985382,1708715486022,-316.583,0.00034829,2]
[314985383,1708715486032,-322.0,0.00034829,2]
[314985384,1708715486040,-2770.469,0.00034829,2]
[314985385,1708715486049,-455.0,0.00034829,2]
[314985386,1708715486059,-390.0,0.00034829,2]
[314985387,1708715486068,-154.98329938,0.00034851,7]
[314985388,1708715486077,-1213.77329886,0.00034852,7]
[314985389,1708715486086,-500.0,0.00034855,2]
[314985390,1708715486097,-2331.59788878,0.0003487,14]
[314985391,1708715486106,-168.45313712,0.00034876,7]
[314985392,1708715486115,-4952.46101687,0.00034878,2]
[314985393,1708715486124,-31052.72504961,0.00034881,2]
[314985394,1708715486134,-206.85395485,0.00034883,7]
[314985395,1708715486143,-249.0,0.0003489,2]
[314985396,1708715486152,-14943.66603388,0.000349,2]
[314985397,1708715486161,-1501.25443955,0.000349,120]
[314985398,1708715486170,-8488.47132521,0.000349,2]
[314985399,1708715486179,-8488.47132509,0.000349,2]
[314985400,1708715486188,-8488.47132509,0.000349,2]
[314985401,1708715486197,-8488.47132509,0.000349,2]
[314985402,1708715486207,-8488.47132509,0.000349,2]
[314985403,1708715486216,-8488.47132509,0.000349,2]
[314985404,1708715486225,-200.0,0.000349,8]
[314985405,1708715486235,-312.44,0.00034905,2]
[314985406,1708715486245,-1062.58235876,0.00034906,7]
[314985407,1708715486254,-154.07502588,0.00034918,7]
[314985408,1708715486264,-150.03630934,0.00034921,2]
[314985409,1708715486273,-165.0,0.00034924,2]
[314985410,1708715486282,-511.3098937,0.00034927,4]
[314985411,1708715486293,-20150.780364,0.00034931,2]
[314985412,1708715486303,-157.08374946,0.00034931,7]
[314985413,1708715486313,-218.46021569,0.00034943,7]
[314985414,1708715486322,-260.95699805,0.00034948,2]
[314985415,1708715486331,-155.76031539,0.00034957,7]
[314985416,1708715486340,-153.31768893,0.00034967,7]
[314985417,1708715486350,-449822.7,0.00034973,2]
[314985418,1708715486359,-549783.3,0.00034973,2]
[314985419,1708715486368,-1581.64343341,0.0003499,2]
[314985420,1708715486377,-656.27444504,0.00034999,2]
[314985421,1708715486386,-103814.20981568,0.00034999,2]
[314985422,1708715486395,-157.0,0.00034999,30]
[314985423,1708715486404,-586.79552556,0.00035,4]
[314985424,1708715486414,-155.0,0.00035,4]
[314985425,1708715486423,-155.06749238,0.00035,4]
[314985426,1708715486432,-3200.0,0.00035,2]
[314985427,1708715486442,-327.39218767,0.00035,7]
[314985428,1708715486451,-701.46532572,0.00035,4]
[314985429,1708715486460,-10231.17892792,0.00035,7]
[314985430,1708715486470,-4280.48,0.00035,3]
[314985431,1708715486479,-173.07,0.00035,2]
[314985432,1708715486488,-5050.84596998,0.00035,2]
[314985433,1708715486498,-471.89,0.00035,5]
[314985434,1708715486507,-1000.0,0.00035,4]
[314985435,1708715486517,-7918.00270095,0.00035,7]
[314985436,1708715486526,-200.0,0.00035,7]
[314985437,1708715486535,-900.0,0.00035,36]
[314985438,1708715486544,-487.87867516,0.00035,30]
[314985439,1708715486553,-6132.799999,0.00035,30]
[314985440,1708715486562,-411.0,0.00035,120]
[314985441,1708715486571,-200.0,0.00035,7]
[314985442,1708715486580,-200.0,0.00035,7]
[314985443,1708715486590,-200.0,0.00035,7]
[314985444,1708715486600,-200.0,0.00035,7]
[314985445,1708715486609,-1706.57195402,0.00035,3]
[314985446,1708715486618,-2000.0,0.00035,7]
[314985447,1708715486627,-200.0,0.00035,7]
[314985448,1708715486636,-200.0,0.00035,7]
[314985449,1708715486645,-300.0,0.00035,2]
[314985450,1708715486654,-200.0,0.00035,7]
[314985451,1708715486664,-1284.43457481,0.00035,2]
[314985452,1708715486673,-5000.0,0.00035,4]
[314985453,1708715486682,-200.0,0.00035,7]
[314985454,1708715486691,-349.02754611,0.00035,4]
[314985455,1708715486701,-200.0,0.00035,7]
[314985456,1708715486710,-200.0,0.00035,7]
[314985457,1708715486720,-54727.90797361,0.00035,7]
[314985458,1708715486729,-200.0,0.00035,7]
[314985459,1708715486738,-293.0,0.00035,2]
[314985460,1708715486747,-200.0,0.00035,7]
[314985461,1708715486757,-200.0,0.00035,7]
[314985462,1708715486766,-200.0,0.00035,7]
[314985463,1708715486775,-200.0,0.00035,7]
[314985464,1708715486784,-200.0,0.00035,7]
[314985465,1708715486793,-200.0,0.00035,7]
[314985466,1708715486801,-200.0,0.00035,7]
[314985467,1708715486811,-200.0,0.00035,7]
[314985468,1708715486820,-200.0,0.00035,7]
[314985469,1708715486829,-200.0,0.00035,7]
[314985470,1708715486838,-200.0,0.00035,7]
[314985471,1708715486849,-200.0,0.00035,7]
[314985472,1708715486858,-250.0,0.00035,120]
[314985473,1708715486870,-200.0,0.00035,7]
[314985474,1708715486880,-200.0,0.00035,7]
[314985475,1708715486890,-200.0,0.00035,7]
[314985476,1708715486900,-200.0,0.00035,7]
[314985477,1708715486911,-200.0,0.00035,7]
[314985478,1708715486921,-200.0,0.00035,7]
[314985479,1708715486931,-200.0,0.00035,7]
[314985480,1708715486941,-200.0,0.00035,7]
[314985481,1708715486952,-200.0,0.00035,7]
[314985482,1708715486963,-236.02011992,0.00035,7]
[314985483,1708715486973,-6248.0,0.00035,2]
[314985484,1708715486982,-200.0,0.00035,7]
[314985485,1708715486991,-200.0,0.00035,7]
[314985486,1708715487003,-12305.04895879,0.00035,30]
[314985487,1708715487013,-98728.84721802,0.00035,2]
[314985488,1708715487023,-98728.84721802,0.00035,2]
[314985489,1708715487033,-2103.02881471,0.00035,2]
[314985490,1708715487043,-2103.02881471,0.00035,2]
[314985491,1708715487054,-1794.58711744,0.00035,2]
[314985492,1708715487064,-1794.58711744,0.00035,2]
[314985493,1708715487074,-1000.0,0.00035,3]
[314985494,1708715487084,-172.0,0.00035,2]
[314985495,1708715487095,-200.0,0.00035,7]
[314985496,1708715487105,-200.0,0.00035,7]
[314985497,1708715487114,-200.0,0.00035,7]
[314985498,1708715487124,-165.0,0.00035,2]
[314985499,1708715487134,-3089.6728224,0.00035,2]
[314985500,1708715487143,-2036.70057829,0.00035,5]
[314985501,1708715487152,-813.24624978,0.00035,2]
[314985502,1708715487162,-500.0,0.00035,2]
[314985503,1708715487172,-2676.0,0.00035,2]
[314985504,1708715487182,-162.76549109,0.00035,4]
[314985505,1708715487192,-300.0,0.00035,10]
[314985506,1708715487202,-26102.8060228,0.00035,5]
[314985507,1708715487212,-57903.81804658,0.00035,5]
[314985508,1708715487222,-13832.87556553,0.00035,5]
[314985509,1708715487231,-5997.0,0.00035,4]
[314985510,1708715487241,-1020.0,0.00035,2]
[314985511,1708715487250,-500.0,0.00035008,2]
[314985512,1708715487261,-155.76031539,0.00035018,7]
[314985513,1708715487270,-573.11929172,0.00035038,7]
[314985514,1708715487280,-604.0,0.00035039,7]
[314985515,1708715487289,-154.98329938,0.00035044,7]
[314985516,1708715487299,-200.0,0.00035058,7]
[314985517,1708715487309,-200.0,0.00035058,7]
[314985518,1708715487318,-4874.9426097,0.00035067,2]
[314985519,1708715487328,-500.0,0.00035068,4]
[314985520,1708715487337,-500.0,0.00035068,4]
[314985521,1708715487347,-25188.475455,0.00035068,2]
[314985522,1708715487358,-206.85395485,0.0003508,7]
[314985523,1708715487368,-156.097128,0.00035088,2]
[314985524,1708715487377,-3177.767954,0.00035088,2]
[314985525,1708715487387,-154.02083881,0.00035088,7]
[314985526,1708715487397,-1213.77329886,0.0003509,7]
[314985527,1708715487407,-5013.18,0.000351,2]
[314985528,1708715487416,-152.0,0.00035107,13]
[314985529,1708715487426,-155.14487319,0.00035112,7]
[314985530,1708715487436,-206.85395485,0.00035118,7]
[314985531,1708715487445,-155.76031544,0.00035127,7]
[314985532,1708715487454,-606.32,0.00035129,2]
[314985533,1708715487465,-500.0,0.0003516,2]
[314985534,1708715487475,-167.02514082,0.00035164,7]
[314985535,1708715487484,-500.0,0.00035178,10]
[314985536,1708715487494,-500.0,0.00035178,10]
[314985537,1708715487503,-150.03630934,0.00035186,2]
[314985538,1708715487512,-153.39,0.000352,3]
[314985539,1708715487522,-153.39,0.000352,3]
[314985540,1708715487531,-153.39,0.000352,3]
[314985541,1708715487540,-153.39,0.000352,3]
[314985542,1708715487550,-153.39,0.000352,3]
[314985543,1708715487559,-153.39,0.000352,3]
[314985544,1708715487569,-153.39,0.000352,3]
[314985545,1708715487578,-153.39,0.000352,3]
[314985546,1708715487588,-153.39,0.000352,3]
[314985547,1708715487598,-153.39,0.000352,3]
[314985548,1708715487608,-153.39,0.000352,3]
[314985549,1708715487617,-153.39,0.000352,3]
[314985550,1708715487626,-153.39,0.000352,3]
[314985551,1708715487636,-153.39,0.000352,3]
[314985552,1708715487645,-153.39,0.000352,3]
[314985553,1708715487655,-153.39,0.000352,3]
[314985554,1708715487664,-153.39,0.000352,3]
[314985555,1708715487674,-153.39,0.000352,3]
[314985556,1708715487683,-153.39,0.000352,3]
[314985557,1708715487869,-153.39,0.000352,3]
[314985558,1708715487884,-153.39,0.000352,3]
[314985559,1708715487894,-153.39,0.000352,3]
[314985560,1708715487903,-153.39,0.000352,3]
[314985561,1708715487914,-153.39,0.000352,3]
[314985562,1708715487924,-573.11929172,0.00035229,7]
[314985563,1708715487933,-162.29119657,0.0003523,7]
[314985564,1708715487942,-260.95699805,0.00035233,2]
[314985565,1708715487954,-204.0,0.00035233,18]
[314985566,1708715487964,-4281.51,0.0003528,4]
[314985567,1708715487973,-4281.51,0.0003528,4]
[314985568,1708715487983,-4281.511,0.0003528,4]
[314985569,1708715487992,-4281.51,0.0003528,4]
[314985570,1708715488002,-4281.511,0.0003528,4]
[314985571,1708715488012,-5013.18,0.0003528,2]
[314985572,1708715488022,-1062.58235876,0.00035281,7]
[314985573,1708715488031,-221.93019744,0.00035299,2]
[314985574,1708715488040,-7841.03,0.000353,3]
[314985575,1708715488050,-7841.03,0.000353,3]
[314985576,1708715488060,-7841.03,0.000353,3]
[314985577,1708715488069,-7841.03,0.000353,3]
[314985578,1708715488079,-7841.03,0.000353,3]
[314985579,1708715488088,-7841.03,0.000353,3]
[314985580,1708715488098,-7841.03,0.000353,3]
[314985581,1708715488108,-7841.03,0.000353,3]
[314985582,1708715488118,-7841.03,0.000353,3]
[314985583,1708715488128,-7841.03,0.000353,3]
[314985584,1708715488137,-7841.03,0.000353,3]
[314985585,1708715488147,-7841.03,0.000353,3]
[314985586,1708715488157,-7841.03,0.000353,3]
[314985587,1708715488166,-7841.03,0.000353,3]
[314985588,1708715488176,-7841.03,0.000353,3]
[314985589,1708715488186,-7841.03,0.000353,3]
[314985590,1708715488196,-7841.03,0.000353,3]
[314985591,1708715488206,-7841.03,0.000353,3]
[314985592,1708715488216,-7841.03,0.000353,3]
[314985593,1708715488225,-7841.03,0.000353,3]
[314985594,1708715488235,-500.0,0.00035312,2]
[314985595,1708715488245,-323.91,0.00035312,2]
[314985596,1708715488254,-182.92,0.00035312,2]
[314985597,1708715488264,-328.0,0.00035323,2]
[314985598,1708715488273,-150.0,0.00035328,2]
[314985599,1708715488284,-1213.77329886,0.00035335,7]
[314985600,1708715488293,-98728.84721802,0.00035342,2]
[314985601,1708715488303,-500.0,0.00035342,4]
[314985602,1708715488313,-500.0,0.00035342,4]
[314985603,1708715488322,-35263.865638,0.00035342,2]
[314985604,1708715488332,-444.0,0.0003535,2]
[314985605,1708715488341,-213.0,0.0003535,2]
[314985606,1708715488351,-208.0,0.0003535,2]
[314985607,1708715488360,-208.0,0.0003535,2]